bitfinex/quotes_BTCUSD_20251226
["timestamp","ask_amount","ask_price","bid_price","bid_amount"]
[1766734571969,0.0134079,89126.0,89103.0,9e-05]
[1766734571970,0.39835771,89110.0,89103.0,9e-05]
[1766734572190,0.39835771,89110.0,89095.0,0.13045977]
[1766734572191,0.01122246,89107.0,89095.0,0.07434]
[1766734572389,0.39835771,89105.0,89095.0,0.07434]
[1766734573054,0.01122309,89102.0,89089.0,0.01122473]
[1766734573223,0.40963771,89101.0,89089.0,0.01122473]
[1766734573452,0.01122334,89100.0,89086.0,0.07444793]
[1766734573619,0.39835771,89098.0,89086.0,0.07444793]
[1766734573824,0.39835771,89098.0,89087.0,0.01122498]
[1766734574021,0.01122334,89100.0,89087.0,0.01122498]
[1766734574022,0.41080108,89100.0,89087.0,0.01122498]
[1766734574438,0.41080108,89100.0,89088.0,0.01122485]
[1766734574648,0.39957774,89100.0,89088.0,0.01122485]
[1766734574850,0.01122221,89109.0,89093.0,0.07331]
[1766734575063,0.01122208,89110.0,89100.0,9e-05]
[1766734575252,0.01122158,89114.0,89102.0,0.01122309]
[1766734575432,0.01122158,89114.0,89103.0,0.07331]
[1766734575619,0.01128,89113.0,89106.0,0.01122258]
[1766734575820,0.01128,89112.0,89106.0,0.01122258]
[1766734576050,0.01128,89111.0,89105.0,0.01122271]
[1766734576247,0.01128,89111.0,89103.0,0.07331]
[1766734576248,0.02250195,89111.0,89103.0,0.07331]
[1766734576490,0.01122195,89111.0,89110.0,0.00143023]
[1766734576693,0.02250195,89111.0,89110.0,2.3e-07]
[1766734576890,0.07861174,89111.0,89110.0,2.3e-07]
[1766734582975,0.09201964,89111.0,89110.0,2.3e-07]
[1766734583426,0.08073964,89111.0,89110.0,2.3e-07]
[1766734583537,0.09201964,89111.0,89110.0,2.3e-07]
[1766734584101,0.09141661,89111.0,89110.0,2.3e-07]
[1766734585095,0.08013661,89111.0,89110.0,2.3e-07]
[1766734585296,0.09141661,89111.0,89110.0,2.3e-07]
[1766734586888,0.07800871,89111.0,89110.0,2.3e-07]
[1766734587189,0.06672871,89111.0,89110.0,2.3e-07]
[1766734587401,0.07800871,89111.0,89110.0,2.3e-07]
[1766734591267,0.0112217,89113.0,89092.0,0.07331]
[1766734591477,0.02204295,89111.0,89097.0,0.08453372]
[1766734591751,0.02250208,89110.0,89099.0,0.07331]
[1766734591975,0.01122221,89109.0,89099.0,0.07331]
[1766734592114,0.01122246,89107.0,89099.0,0.07331]
[1766734592751,0.01122246,89107.0,89094.0,0.0112241]
[1766734592952,0.0673354,89107.0,89094.0,0.07331]
[1766734593152,0.01122271,89105.0,89094.0,0.07331]
[1766734593366,0.01122321,89101.0,89094.0,0.07331]
[1766734593731,0.01122296,89103.0,89094.0,0.07331]
[1766734593930,0.01122271,89105.0,89094.0,0.07331]
[1766734594492,0.01122296,89103.0,89094.0,0.07331]
[1766734594840,0.01122284,89104.0,89094.0,0.07331]
[1766734595463,0.01122271,89105.0,89094.0,0.07331]
[1766734596456,0.01122296,89103.0,89094.0,0.07331]
[1766734597102,0.01122296,89103.0,89102.0,0.00024437]
[1766734597277,0.01122321,89101.0,89094.0,0.07331]
[1766734597687,0.01122334,89100.0,89094.0,0.07331]
[1766734597884,0.01122359,89098.0,89086.0,0.00010793]
[1766734598066,0.01122397,89095.0,89087.0,0.08459]
[1766734598267,0.01122359,89098.0,89087.0,0.08459]
[1766734598475,0.06734197,89098.0,89087.0,0.08459]
[1766734598874,0.01122359,89098.0,89087.0,0.08459]
[1766734599311,0.01122334,89100.0,89087.0,0.09581498]
[1766734599491,0.01122347,89099.0,89087.0,0.08459]
[1766734599865,0.01122334,89100.0,89087.0,0.08459]
[1766734600122,0.01122359,89098.0,89087.0,0.08459]
[1766734600419,0.01122397,89095.0,89087.0,0.08459]
[1766734600618,0.05611861,89097.0,89087.0,0.08459]
[1766734600825,0.01122384,89096.0,89087.0,0.08459]
[1766734600980,0.01122397,89095.0,89087.0,0.08459]
[1766734601391,0.01122384,89096.0,89087.0,0.08459]
[1766734601989,0.01122397,89095.0,89087.0,0.08459]
[1766734602194,0.01122372,89097.0,89087.0,0.08459]
[1766734602378,0.01122359,89098.0,89087.0,0.08459]
[1766734602581,0.01122347,89099.0,89087.0,0.09581498]
[1766734602779,0.0673388,89102.0,89087.0,0.09581498]
[1766734602986,0.01122334,89100.0,89087.0,0.09581498]
[1766734603206,0.01122321,89101.0,89094.0,0.00024368]
[1766734603636,0.01122221,89109.0,89097.0,0.07116]
[1766734603848,0.01122195,89111.0,89098.0,0.07116]
[1766734604054,0.01122296,89103.0,89098.0,0.07116]
[1766734604352,0.01122208,89110.0,89097.0,0.01122372]
[1766734604569,0.01122195,89111.0,89098.0,0.01122359]
[1766734604806,0.06733214,89111.0,89096.0,0.01128]
[1766734604987,0.01122221,89109.0,89096.0,0.02250384]
[1766734605195,0.01122221,89109.0,89096.0,0.09746384]
[1766734605367,0.01122221,89109.0,89097.0,0.01122372]
[1766734605563,0.01122221,89109.0,89096.0,0.09746384]
[1766734605806,0.01122233,89108.0,89096.0,0.08624]
[1766734606070,0.01122246,89107.0,89096.0,0.08624]
[1766734606224,0.01122334,89100.0,89096.0,0.08624]
[1766734606431,0.01122334,89100.0,89094.0,0.00024368]
[1766734606635,0.0112241,89094.0,89086.0,0.00010793]
[1766734607185,0.01122435,89092.0,89086.0,0.00010793]
[1766734607322,0.0112246,89090.0,89086.0,0.00010793]
[1766734607523,0.01122473,89089.0,89086.0,0.00010793]
[1766734607909,0.06734651,89092.0,89086.0,0.00010793]
[1766734608118,0.01122561,89082.0,89070.0,0.07496]
[1766734608316,0.01122561,89082.0,89072.0,0.07496]
[1766734608317,0.01122586,89080.0,89072.0,0.07496]
[1766734608739,0.06735489,89081.0,89072.0,0.07496]
[1766734608937,0.06735489,89081.0,89062.0,0.05614016]
[1766734608938,0.01122699,89071.0,89060.0,0.07496]
[1766734609271,0.01122662,89074.0,89060.0,0.07496]
[1766734609272,0.000549,89072.0,89060.0,0.07496]
[1766734609429,0.0112275,89067.0,89060.0,0.07496]
[1766734609639,0.01122725,89069.0,89060.0,0.07496]
[1766734609839,0.01122737,89068.0,89060.0,0.07496]
[1766734610041,0.01122674,89073.0,89062.0,0.07496]
[1766734610448,0.01122662,89074.0,89062.0,0.07496]
[1766734610844,0.01122649,89075.0,89064.0,0.07496]
[1766734611054,0.01122662,89074.0,89064.0,0.07496]
[1766734611257,0.01122649,89075.0,89064.0,0.07496]
[1766734611454,0.01122662,89074.0,89064.0,0.07496]
[1766734611670,0.01122649,89075.0,89064.0,0.07496]
[1766734611872,0.01122649,89075.0,89064.0,0.08618788]
[1766734612071,0.01122649,89075.0,89064.0,0.07496]
[1766734612275,0.01122674,89073.0,89064.0,0.07496]
[1766734612474,0.01122662,89074.0,89064.0,0.07496]
[1766734613034,0.01122649,89075.0,89064.0,0.07496]
[1766734613248,0.05613234,89076.0,89031.0,0.0002]
[1766734613476,0.000172,89053.0,89042.0,6.5e-07]
[1766734613674,0.000172,89053.0,89047.0,0.07496]
[1766734613880,0.00958342,89058.0,89048.0,0.07608287]
[1766734614080,0.01122876,89057.0,89048.0,0.07496]
[1766734614296,0.00562888,89056.0,89048.0,0.07496]
[1766734614519,0.00543681,89057.0,89048.0,0.07496]
[1766734614694,0.00562888,89056.0,89048.0,0.07531976]
[1766734614901,0.05579812,89058.0,89048.0,0.07531976]
[1766734615106,0.05614436,89057.0,89048.0,0.07531976]
[1766734615308,0.05054204,89063.0,89048.0,0.07531976]
[1766734615581,0.05614522,89055.0,89048.0,0.00035976]
[1766734615706,0.00018924,89048.0,89044.0,0.07496]
[1766734615920,0.00054967,89048.0,89044.0,0.07496]
[1766734616116,0.00036043,89048.0,89044.0,0.07496]
[1766734616334,0.01122901,89055.0,89044.0,0.07496]
[1766734616535,0.06737312,89057.0,89044.0,0.07506783]
[1766734616536,0.01122876,89057.0,89044.0,0.07506783]
[1766734616710,0.011228,89063.0,89057.0,0.00036]
[1766734616913,0.04492,89076.0,89057.0,0.00036]
[1766734616914,0.01122712,89070.0,89058.0,0.07496]
[1766734617115,0.0112275,89067.0,89058.0,0.07496]
[1766734617322,0.02250699,89071.0,89050.0,0.07865774]
[1766734617323,0.000189,89058.0,89050.0,0.08624]
[1766734617519,0.00569231,89049.0,89044.0,0.01138783]
[1766734617718,0.05615203,89044.0,89042.0,6.5e-07]
[1766734617928,0.0562601,89044.0,89042.0,6.5e-07]
[1766734618125,0.0562601,89044.0,89032.0,0.07496]
[1766734618126,0.01123078,89041.0,89032.0,0.07496]
[1766734618325,0.01123065,89042.0,89032.0,0.07496]
[1766734618776,0.00010807,89044.0,89042.0,0.00036]
[1766734618941,0.00010807,89044.0,89036.0,0.08619141]
[1766734619140,0.01128,89046.0,89031.0,0.05635961]
[1766734619141,0.01128,89046.0,89043.0,0.0673827]
[1766734619383,0.01122914,89054.0,89044.0,0.07496]
[1766734619504,0.02250914,89054.0,89044.0,0.07532043]
[1766734619722,0.01128,89054.0,89044.0,0.07532043]
[1766734619922,0.02250914,89054.0,89044.0,0.07532043]
[1766734620128,0.01122901,89055.0,89044.0,0.07532043]
[1766734620418,0.01092,89054.0,89044.0,0.08655083]
[1766734620595,0.01092,89054.0,89044.0,0.07532043]
[1766734620799,0.00037857,89044.0,89034.0,0.07496]
[1766734621120,0.00037857,89044.0,89020.0,0.07516]
[1766734621121,0.0134079,89038.0,89020.0,0.07516]
[1766734621235,0.01123027,89045.0,89031.0,0.01123204]
[1766734621433,0.05615327,89042.0,89032.0,0.07496]
[1766734621691,0.01128,89047.0,89032.0,0.07496]
[1766734621988,0.01128,89051.0,89047.0,0.000361]
[1766734622195,0.01128,89051.0,89035.0,0.07496]
[1766734622196,0.01128,89051.0,89035.0,0.08619153]
[1766734622392,0.01128,89051.0,89035.0,0.07496]
[1766734622393,0.58598157,89050.0,89035.0,0.07496]
[1766734622548,0.000738,89035.0,89031.0,4.3e-07]
[1766734622754,0.01128,89040.0,89037.0,0.01123128]
[1766734622973,0.01128,89040.0,89032.0,0.01123191]
[1766734623186,0.58598157,89050.0,89030.0,7.02e-06]
[1766734623390,0.00036065,89050.0,89040.0,0.0112309]
[1766734623594,6.5e-07,89050.0,89047.0,0.01123002]
[1766734623791,6.5e-07,89050.0,89045.0,0.01123027]
[1766734624023,6.5e-07,89050.0,89046.0,0.01123015]
[1766734624225,6.5e-07,89050.0,89044.0,0.0112304]
[1766734624408,6.5e-07,89050.0,89047.0,0.01123002]
[1766734624609,6.5e-07,89050.0,89044.0,4e-07]
[1766734624610,0.001098,89047.0,89044.0,4e-07]
[1766734624768,0.001098,89047.0,89019.0,0.07496]
[1766734624769,0.0134079,89045.0,89019.0,0.07496]
[1766734624950,0.58598157,89040.0,89030.0,0.05616054]
[1766734625154,0.58598157,89040.0,89034.0,0.01123166]
[1766734625155,0.01128,89039.0,89034.0,0.01123166]
[1766734625356,0.01128,89039.0,89036.0,0.01123141]
[1766734625549,0.58598222,89050.0,89036.0,0.06738785]
[1766734625754,0.01128,89049.0,89038.0,0.01123115]
[1766734625962,0.01128,89049.0,89040.0,0.0112309]
[1766734626367,6.5e-07,89050.0,89049.0,0.000549]
[1766734626568,6.5e-07,89050.0,89045.0,0.01123027]
[1766734626569,0.01128065,89050.0,89045.0,0.01123027]
[1766734626813,0.01128065,89050.0,89044.0,0.0112304]
[1766734626814,0.01128,89049.0,89044.0,0.0112304]
[1766734626993,0.01128,89049.0,89045.0,0.01123027]
[1766734627174,0.01128,89049.0,89044.0,0.0112304]
[1766734627389,0.01128,89049.0,89040.0,0.0112309]
[1766734627577,0.01128,89049.0,89027.0,0.07496]
[1766734627578,0.02250977,89049.0,89027.0,0.07496]
[1766734627776,0.58598157,89040.0,89034.0,0.01123166]
[1766734628129,0.00055,89034.0,89028.0,1.55e-06]
[1766734628334,0.01123052,89043.0,89030.0,0.01123216]
[1766734628637,0.58598157,89040.0,89029.0,0.01123229]
[1766734628837,0.58598157,89040.0,89020.0,0.0002]
[1766734628838,0.01123242,89028.0,89015.0,2.51e-06]
[1766734629054,0.01123267,89026.0,89015.0,2.51e-06]
[1766734629194,0.01123292,89024.0,89015.0,2.51e-06]
[1766734629745,0.01123368,89018.0,89015.0,2.51e-06]
[1766734629914,0.05616967,89016.0,89015.0,2.51e-06]
[1766734630374,0.59721626,89010.0,89000.0,9.925]
[1766734630506,0.01123418,89014.0,89010.0,0.000549]
[1766734630688,0.01123431,89013.0,89010.0,0.000549]
[1766734630891,0.0112333,89021.0,89010.0,0.000909]
[1766734631098,0.01128,89020.0,89013.0,0.01123431]
[1766734631450,0.0225533,89021.0,89010.0,0.00036]
[1766734631673,0.0225533,89021.0,89000.0,9.925]
[1766734631674,0.05617492,89008.0,89000.0,9.925]
[1766734631810,0.01123469,89010.0,89008.0,0.00018879]
[1766734632008,0.011127,89007.0,89000.0,9.925]
[1766734632235,0.011127,89007.0,89000.0,9.317901]
[1766734632236,0.00010801,89007.0,89000.0,9.317901]
[1766734632642,0.01132,89007.0,89000.0,9.392861]
[1766734632811,0.010221,89007.0,89000.0,9.392861]
[1766734633019,0.01132,89012.0,89005.0,0.01123532]
[1766734633253,0.06740102,89020.0,89005.0,0.01123532]
[1766734633473,0.06740102,89020.0,89000.0,9.392861]
[1766734633474,0.01123393,89016.0,89000.0,9.392861]
[1766734633618,0.05617097,89014.0,89000.0,9.392861]
[1766734633799,0.01123431,89013.0,89000.0,9.40409695]
[1766734633999,0.01123406,89015.0,89001.0,0.01123582]
[1766734634255,0.01123418,89014.0,89000.0,9.392861]
[1766734634454,0.06539097,89012.0,89000.0,9.317901]
[1766734634599,0.01123507,89007.0,89000.0,9.317901]
[1766734634823,0.01123557,89003.0,89000.0,8.717352]
[1766734635179,0.00291645,89002.0,89000.0,8.717352]
[1766734636916,0.01123507,89007.0,89002.0,0.000549]
[1766734637118,0.01123532,89005.0,89000.0,8.717352]
[1766734637318,0.01132,89004.0,89000.0,8.717352]
[1766734638321,0.01123494,89008.0,89004.0,0.000549]
[1766734638536,0.02255507,89007.0,89004.0,0.000549]
[1766734638731,0.02255507,89007.0,89000.0,8.717352]
[1766734638732,0.01123545,89004.0,89000.0,8.717352]
[1766734639060,0.01123532,89005.0,89000.0,8.717352]
[1766734639235,0.01123557,89003.0,89000.0,8.717352]
[1766734640096,0.01123532,89005.0,89000.0,8.717352]
[1766734640314,0.01123481,89009.0,89005.0,0.000549]
[1766734640445,0.01123494,89008.0,89005.0,0.000549]
[1766734640632,0.01123519,89006.0,89000.0,8.717352]
[1766734640832,0.01123507,89007.0,89005.0,0.00091468]
[1766734641035,0.01123507,89007.0,89000.0,8.717352]
[1766734641036,0.02255507,89007.0,89000.0,8.717352]
[1766734642023,0.0200617,89007.0,89000.0,8.717352]
[1766734642496,0.01123519,89006.0,89000.0,8.717352]
[1766734642718,0.0209533,89007.0,89000.0,8.717352]
[1766734643149,0.01123469,89010.0,89000.0,8.717352]
[1766734643318,0.01132,89009.0,89000.0,8.789772]
[1766734643462,0.22468139,89015.0,89000.0,8.789772]
[1766734643463,0.01123532,89005.0,89000.0,8.717352]
[1766734643671,0.01123507,89007.0,89000.0,8.717352]
[1766734643982,0.02255494,89008.0,89007.0,0.000549]
[1766734644393,0.01123507,89007.0,89000.0,8.717352]
[1766734644610,0.02255494,89008.0,89000.0,8.717352]
[1766734644831,0.01123507,89007.0,89000.0,8.717352]
[1766734645112,0.02255507,89007.0,89000.0,8.717352]
[1766734645311,0.01132,89007.0,89000.0,8.717352]
[1766734645474,0.01123532,89005.0,89000.0,8.717352]
[1766734645677,0.01123519,89006.0,89000.0,8.717352]
[1766734645995,0.01123507,89007.0,89000.0,8.717352]
[1766734646197,0.02255507,89007.0,89006.0,0.00088418]
[1766734647105,0.02255507,89007.0,89006.0,0.00033418]
[1766734647986,0.01123507,89007.0,89006.0,0.00033418]
[1766734648222,0.02255507,89007.0,89006.0,0.00033418]
[1766734649669,0.01123507,89007.0,89006.0,0.00033418]
[1766734649878,0.02255507,89007.0,89006.0,0.00033418]
[1766734650484,0.02998596,89035.0,89007.0,0.001099]
[1766734650740,0.01123343,89020.0,89008.0,0.01123494]
[1766734650913,0.01123418,89014.0,89002.0,0.0112357]
[1766734651231,0.01123393,89016.0,89002.0,0.0836557]
[1766734651428,0.01123393,89016.0,89014.0,0.000549]
[1766734651588,0.01132,89019.0,89014.0,0.000549]
[1766734651766,0.0112338,89017.0,89004.0,0.01123545]
[1766734651971,0.0112338,89017.0,89005.0,0.08365532]
[1766734652173,0.01132,89016.0,89006.0,0.01123519]
[1766734652410,0.01123431,89013.0,88998.0,0.0112362]
[1766734652614,0.01123507,89007.0,89000.0,8.717352]
[1766734652932,0.01123557,89003.0,89000.0,8.717352]
[1766734654637,0.01123545,89004.0,89000.0,8.717352]
[1766734654796,0.01123532,89005.0,89004.0,0.001099]
[1766734655027,0.01123545,89004.0,89000.0,8.717352]
[1766734655573,0.01123557,89003.0,89000.0,8.717352]
[1766734656527,0.06741398,89003.0,89000.0,8.717352]
[1766734656914,0.01123557,89003.0,89000.0,8.717352]
[1766734657342,0.01123545,89004.0,89000.0,8.717352]
[1766734657547,0.01068645,89004.0,89000.0,8.717352]
[1766734658664,0.01132,89006.0,89000.0,8.717352]
[1766734658870,0.01123431,89013.0,89006.0,0.00055]
[1766734659029,0.02181355,89012.0,89006.0,0.00055]
[1766734659227,0.02181355,89012.0,89002.0,0.07242]
[1766734659228,0.01049355,89011.0,89002.0,0.07242]
[1766734659490,0.01049355,89011.0,89002.0,0.0836557]
[1766734659643,0.01049355,89011.0,89002.0,0.07242]
[1766734659845,0.00994355,89011.0,89002.0,0.07242]
[1766734661140,0.00994355,89011.0,89002.0,0.07287648]
[1766734661333,0.02255444,89012.0,89002.0,0.07242]
[1766734661612,0.01132,89012.0,89002.0,0.07242]
[1766734662154,0.00010813,89020.0,89002.0,0.07242]
[1766734662359,0.01132,89017.0,89007.0,0.07242]
[1766734662560,0.01123355,89019.0,89008.0,0.07242]
[1766734662763,0.01123368,89018.0,89008.0,0.07242]
[1766734664025,0.02255355,89019.0,89008.0,0.07242]
[1766734664762,0.01123368,89018.0,89008.0,0.07242]
[1766734664993,0.02255355,89019.0,89008.0,0.07242]
[1766734665203,0.000549,89008.0,89000.0,8.717352]
[1766734665404,0.01123519,89006.0,89000.0,8.717352]
[1766734666303,0.01123545,89004.0,89000.0,8.717352]
[1766734666505,0.01123545,89004.0,89000.0,8.716803]
[1766734666704,0.01123532,89005.0,89000.0,8.716803]
[1766734667030,0.01123519,89006.0,89000.0,8.716803]
[1766734667759,0.01123545,89004.0,89000.0,8.716803]
[1766734667932,0.01123507,89007.0,89000.0,8.716803]
[1766734668137,0.01123507,89007.0,89004.0,0.000549]
[1766734668723,0.01123532,89005.0,89000.0,8.716803]
[1766734668928,0.01123519,89006.0,89000.0,8.716803]
[1766734669327,0.01123545,89004.0,89000.0,8.716803]
[1766734669529,0.01123532,89005.0,89000.0,8.716803]
[1766734669734,0.01123532,89005.0,89004.0,0.000549]
[1766734670069,0.01123507,89007.0,89004.0,0.000549]
[1766734670249,0.06741079,89007.0,89000.0,8.716803]
[1766734670457,0.01123519,89006.0,89000.0,8.716803]
[1766734671129,0.01123532,89005.0,89000.0,8.716803]
[1766734671331,0.01123519,89006.0,89005.0,0.000549]
[1766734671646,0.01123507,89007.0,89005.0,0.000549]
[1766734671851,0.01123519,89006.0,89003.0,0.00042599]
[1766734672051,0.01123519,89006.0,89000.0,8.716803]
[1766734672253,0.01123507,89007.0,89005.0,0.000365]
[1766734672461,0.01123519,89006.0,89000.0,8.716803]
[1766734673786,0.01123532,89005.0,89000.0,8.716803]
[1766734674189,0.01123519,89006.0,89000.0,8.716803]
[1766734674841,0.01123507,89007.0,89006.0,0.000549]
[1766734675229,0.01123519,89006.0,89000.0,8.716803]
[1766734675883,0.01123532,89005.0,89000.0,8.716803]
[1766734676094,0.01123519,89006.0,89000.0,8.716803]
[1766734676622,0.06683115,89007.0,89000.0,8.716803]
[1766734676827,0.01123519,89006.0,89000.0,8.716803]
[1766734677036,0.01065538,89007.0,89000.0,8.716803]
[1766734677242,0.01123519,89006.0,89000.0,8.716803]
[1766734678220,0.01123532,89005.0,89000.0,8.716803]
[1766734678424,0.01123532,89005.0,89004.0,0.00039549]
[1766734678619,0.01123557,89003.0,89000.0,8.71119849]
[1766734680291,0.06741368,89003.0,89000.0,8.71064849]
[1766734680508,0.01123557,89003.0,89000.0,8.71064849]
[1766734680924,0.06741377,89003.0,89000.0,8.17844856]
[1766734681124,0.05617886,89002.0,89000.0,8.17844856]
[1766734682136,0.0134079,89004.0,89000.0,8.17844856]
[1766734682494,0.05617232,89012.0,89000.0,8.17844856]
[1766734682495,0.02251456,89011.0,89000.0,8.17844856]
[1766734683072,0.01123469,89010.0,89000.0,8.17844856]
[1766734683369,0.02251456,89011.0,89000.0,8.17844856]
[1766734683580,0.01128,89011.0,89000.0,8.17844856]
[1766734683763,0.01123469,89010.0,89000.0,8.17844856]
[1766734683915,0.02251456,89011.0,89000.0,8.17844856]
[1766734684122,0.01123469,89010.0,89000.0,8.17844856]
[1766734684322,0.01128,89011.0,89000.0,8.18968451]
[1766734684572,0.01128,89011.0,89002.0,0.0112357]
[1766734684788,0.0134079,89019.0,89011.0,0.000549]
[1766734685000,0.01128,89018.0,89013.0,0.01123431]
[1766734685212,0.01128,89018.0,89011.0,0.05617231]
[1766734685411,0.00010813,89020.0,89003.0,0.22471034]
[1766734685412,0.00010813,89020.0,89018.0,0.00055]
[1766734685680,0.00010813,89020.0,89014.0,0.01123418]
[1766734685681,0.00010813,89020.0,89017.0,0.0112338]
[1766734685848,0.00010813,89020.0,89018.0,0.05616828]
[1766734685988,0.01128,89035.0,89028.0,0.01123242]
[1766734686190,0.01128,89035.0,89019.0,0.07073]
[1766734686427,0.01128,89035.0,89025.0,0.01123279]
[1766734686641,0.01123002,89047.0,89021.0,0.22466485]
[1766734686642,0.02419172,89048.0,89027.0,0.01123254]
[1766734686820,0.01123065,89042.0,89035.0,0.000549]
[1766734687026,0.01123078,89041.0,89035.0,0.000549]
[1766734687187,0.01123115,89038.0,89023.0,0.01123305]
[1766734687387,0.01123128,89037.0,89023.0,0.01123305]
[1766734687703,0.01123153,89035.0,89021.0,0.06739961]
[1766734687908,0.01123153,89035.0,89022.0,0.01123317]
[1766734688110,0.01123191,89032.0,89022.0,0.01128]
[1766734688307,0.05616177,89029.0,89022.0,0.01128]
[1766734688533,0.01123292,89024.0,89012.0,0.07073]
[1766734688694,0.0112333,89021.0,89010.0,0.01128]
[1766734688917,0.01123343,89020.0,89010.0,0.01128]
[1766734689271,0.0112333,89021.0,89010.0,0.01128]
[1766734689473,0.01123317,89022.0,89010.0,0.02251469]
[1766734689783,0.01123292,89024.0,89022.0,0.000549]
[1766734690125,0.01123343,89020.0,89010.0,0.01138813]
[1766734690328,0.01123317,89022.0,89010.0,0.01138813]
[1766734691538,0.01123343,89020.0,89010.0,0.01138813]
[1766734691854,0.0112333,89021.0,89010.0,0.02262282]
[1766734692031,0.01123317,89022.0,89010.0,0.02262282]
[1766734692232,0.0112333,89021.0,89010.0,0.01138813]
[1766734692754,0.01123317,89022.0,89010.0,0.02262282]
[1766734692953,0.0112333,89021.0,89010.0,0.02262282]
[1766734693159,0.0112333,89021.0,89010.0,0.01138813]
[1766734693975,0.01123317,89022.0,89010.0,0.02262282]
[1766734694339,0.0112333,89021.0,89010.0,0.01138813]
[1766734694538,0.0112333,89021.0,89010.0,0.00010813]
[1766734694734,0.0112333,89021.0,89010.0,0.01134282]
[1766734695076,0.0112333,89021.0,89010.0,0.00010813]
[1766734695256,0.01123343,89020.0,89010.0,0.00010813]
[1766734695463,0.01123355,89019.0,89010.0,0.00010813]
[1766734696391,0.01123343,89020.0,89010.0,0.00010813]
[1766734696956,0.05616841,89018.0,89010.0,0.00010813]
[1766734697316,0.01123393,89016.0,89010.0,0.00010813]
[1766734697516,0.05617274,89012.0,89010.0,1.3e-07]
[1766734698496,0.06740627,89013.0,89010.0,1.3e-07]
[1766734698922,0.05617264,89012.0,89010.0,1.3e-07]
[1766734699526,0.05617256,89012.0,89010.0,1.3e-07]
[1766734700698,0.01128,89011.0,89010.0,1.3e-07]
[1766734701152,0.01123557,89003.0,89000.0,8.17844856]
[1766734701321,0.01123557,89003.0,89000.0,8.17800756]
[1766734701789,0.01123519,89006.0,89003.0,0.000549]
[1766734701986,0.01068519,89006.0,89003.0,0.000549]
[1766734702227,0.01123532,89005.0,89000.0,8.17800756]
[1766734702627,0.01123545,89004.0,89000.0,8.17800756]
[1766734703550,0.01123557,89003.0,89000.0,8.17800756]
[1766734703912,0.0561791,89002.0,89000.0,7.63253731]
[1766734704341,0.06741378,89003.0,89000.0,7.6268607]
[1766734704843,0.05617902,89002.0,89000.0,7.6268607]
[1766734705044,0.06741378,89003.0,89000.0,7.6263107]
[1766734706424,0.0561791,89002.0,89000.0,7.0216022]
[1766734706638,0.0561791,89002.0,89000.0,6.72279701]
[1766734706844,0.0561791,89002.0,89000.0,5.89258666]
[1766734706845,0.05705931,89002.0,89000.0,5.89258666]
[1766734707178,0.04743644,89002.0,89000.0,5.60963245]
[1766734707322,0.05617908,89002.0,89000.0,5.60963245]
[1766734707921,0.06741378,89003.0,89000.0,5.60963245]
[1766734708650,0.0134079,89001.0,89000.0,5.60963245]
[1766734709817,0.0134079,89001.0,89000.0,4.89088807]
[1766734710028,0.0134079,89001.0,89000.0,4.86407213]
[1766734710192,0.01134386,89001.0,89000.0,4.83725619]
[1766734710710,0.01134386,89001.0,89000.0,4.01033303]
[1766734711115,0.01134386,89001.0,89000.0,4.00861246]
[1766734712159,0.00808876,89001.0,89000.0,4.00861246]
[1766734714935,0.00808876,89001.0,89000.0,3.95238778]
[1766734715366,0.00808876,89001.0,89000.0,3.83993701]
[1766734715570,0.00808876,89001.0,89000.0,3.7132329]
[1766734715829,0.00808876,89001.0,89000.0,3.58436295]
[1766734716040,0.00808876,89001.0,89000.0,3.33264537]
[1766734716208,0.00808876,89001.0,89000.0,0.13906979]
[1766734716388,0.05618356,88994.0,88993.0,4.18e-06]
[1766734716703,0.05618356,88994.0,88978.0,0.04496]
[1766734716704,0.01123709,88991.0,88978.0,0.04496]
[1766734716904,0.01123709,88991.0,88979.0,0.01128]
[1766734717352,0.01123734,88989.0,88979.0,0.01128]
[1766734717567,0.01123709,88991.0,88979.0,0.01128]
[1766734717969,0.01123721,88990.0,88979.0,0.01128]
[1766734718542,0.01123734,88989.0,88979.0,0.01128]
[1766734718739,0.01123747,88988.0,88979.0,0.00528]
[1766734718990,0.01123759,88987.0,88974.0,0.0002]
[1766734719190,0.01123747,88988.0,88974.0,0.0002]
[1766734719191,0.01123772,88986.0,88975.0,0.01128]
[1766734719633,0.06742882,88983.0,88974.0,0.0002]
[1766734719851,0.0112381,88983.0,88976.0,0.01128]
[1766734720082,0.22474588,88990.0,88976.0,0.01128]
[1766734720083,0.01123772,88986.0,88976.0,0.01128]
[1766734720297,0.01123759,88987.0,88976.0,0.01128]
[1766734720728,0.01123772,88986.0,88976.0,0.01128]
[1766734720900,0.01123772,88986.0,88974.0,0.0002]
[1766734721131,0.01123759,88987.0,88974.0,0.0002]
[1766734721444,0.01123772,88986.0,88974.0,0.0002]
[1766734721636,0.01123772,88986.0,88975.0,0.01128]
[1766734721841,0.01123759,88987.0,88975.0,0.01128]
[1766734722041,0.01132573,88994.0,88988.0,0.00024412]
[1766734722255,0.01123696,88992.0,88989.0,0.01128]
[1766734722430,0.01123683,88993.0,88989.0,0.01128]
[1766734722833,0.01123696,88992.0,88989.0,0.010731]
[1766734723037,0.06742233,88992.0,88989.0,0.010731]
[1766734723194,0.01123683,88993.0,88989.0,0.010731]
[1766734723585,0.01123696,88992.0,88989.0,0.010731]
[1766734723816,0.01132573,88994.0,88989.0,0.010731]
[1766734724023,0.01123683,88993.0,88989.0,0.010731]
[1766734724426,0.01123696,88992.0,88989.0,0.010731]
[1766734725326,0.01123683,88993.0,88989.0,0.010731]
[1766734725524,8.902e-05,88994.0,88993.0,0.00055]
[1766734725936,8.902e-05,88994.0,88989.0,0.010731]
[1766734726756,0.0112357,89002.0,88989.0,0.010731]
[1766734726922,0.0112357,89002.0,88989.0,0.01109121]
[1766734726923,0.01123608,88999.0,88989.0,0.01109121]
[1766734727757,0.0112362,88998.0,88989.0,0.01109121]
[1766734728268,0.01123633,88997.0,88989.0,0.01109121]
[1766734728468,0.0112362,88998.0,88989.0,0.01109121]
[1766734728979,0.06741556,89001.0,88989.0,0.01109121]
[1766734729170,0.01123608,88999.0,88989.0,0.01109121]
[1766734729375,0.06741348,89003.0,88989.0,0.01109121]
[1766734729551,0.01123582,89001.0,88989.0,0.01109121]
[1766734730392,0.01123608,88999.0,88989.0,0.01109121]
[1766734730600,0.06741551,89001.0,88989.0,0.01109121]
[1766734730981,0.01123595,89000.0,88989.0,0.01109121]
[1766734731867,0.01123608,88999.0,88989.0,0.01109121]
[1766734732068,0.01123557,89003.0,88989.0,0.01109121]
[1766734732353,0.0112357,89002.0,88990.0,0.40042849]
[1766734732485,0.01123545,89004.0,89002.0,0.000461]
[1766734732686,0.01123519,89006.0,89003.0,0.01128]